[Event "85th Tata Steel Masters 2023"]
[Site "Wijk aan Zee"]
[Date "2023.01.20"]
[Round "6.3"]
[White "Giri, Anish"]
[Black "Erigaisi Arjun"]
[Result "1/2-1/2"]
[ECO "D48"]
[WhiteElo "2764"]
[BlackElo "2722"]
[Annotator "TA"]
[PlyCount "90"]
[EventDate "2023.01.10"]
[EventType "tourn"]
[EventCountry "NED"]
[SourceTitle "playchess.com"]
[Source "ChessBase"]
[SourceQuality "1"]
[TimeControl "40/6000+30:30/3000+30:900+30"]

{[%evp 23,90,6,25,-14,68,83,74,71,80,66,83,82,69,72,81,90,88,81,78,79,84,83,109,102,101,107,103,112,145,63,72,47,85,108,142,131,138,138,149,160,125,141,118,140,138,0,0,0,8,0,0,0,0,0,0,0,0,0,0,0,0,0,0,0,0,0,0,0,0]} 1. c4 {[%emt 0:00:02]} e6 {[%emt 0:00:39]} 2. Nc3 {[%emt 0:00:18]} d5 {[%emt 0:00:05]} 3. d4 {[%emt 0:00:03]} c6 {[%emt 0:00:05]} 4. e3 {[%emt 0:00:08]} Nf6 {[%emt 0:00:06]} 5. Nf3 {[%emt 0:00:04]} Nbd7 {[%emt 0:00:06]} 6. Bd3 {[%emt 0:00:04]} dxc4 {[%emt 0:00:06]} 7. Bxc4 {[%emt 0:00:03]} b5 {[%emt 0:00:06]} 8. Bd3 {[%emt 0:00:03]} Bb7 {[%emt 0:00:05]} 9. O-O {[%emt 0:00:08]} a6 {[%emt 0:00:26]} 10. e4 {[%emt 0:00:04]} c5 {[%emt 0:00:05]} 11. d5 {[%emt 0:00:03]} c4 {[%emt 0:00:30]} 12. Bc2 {[%emt 0:00:17]} Qc7 {[%emt 0:00:06]} 13. Qe2 {[%emt 0:00:44] D48: Semi-Slav: Meran System: 7...b5 8 Bd3 a6.} (13. dxe6 {keeps more tension.} fxe6 14. Ng5 Nc5 15. e5) 13... O-O-O {[%emt 0:21:39]} (13... Bd6 $11) 14. dxe6 $14 {[%emt 0:07:57]} fxe6 {[%emt 0:00:17]} 15. e5 $1 {[%emt 0:00:18] White is better.} Nd5 {[%emt 0:03:34]} 16. Nxd5 {[%emt 0:06:10]} (16. Bg5 Re8 $11) 16... Bxd5 {[%emt 0:01:31] [#]} 17. Bg5 $146 {[%emt 0:01:13][%cal Bc1g5,Bg5h4,Bh4g3][%mdl 32]} ({Predecessor:} 17. a4 b4 18. Bf4 Kb7 19. Be4 Nc5 20. Bxd5+ exd5 21. Nd4 Qf7 22. Bg3 Ne6 23. Nxe6 Qxe6 {½-½ Khorovets Aiedinova,E (2130)-Rubzova,T (2230) URS-chT Republics (Women) 1st Group1 1986 (2)}) 17... Re8 {[%emt 0:00:16]} 18. b3 {[%emt 0:02:12]} Bc5 {[%emt 0:11:23]} 19. bxc4 {[%emt 0:02:23]} bxc4 {[%emt 0:00:17]} 20. Rac1 {[%emt 0:07:59]} Rhf8 {[%emt 0:06:32][%cal Of8f3]} 21. Be4 {[%emt 0:31:29]} (21. Bxh7 Rxf3 22. gxf3 Rh8 $11) 21... h6 {[%emt 0:26:04]} (21... Nxe5 $2 22. Nxe5 Qxe5 23. Rxc4 $18) 22. Bh4 {[%emt 0:04:41]} Kb8 {[%emt 0:07:23]} (22... Nxe5 $2 23. Nxe5 Qxe5 24. Rxc4 Bxc4 25. Qxc4 $18 (25. Bb7+ Kxb7 26. Rb1+ Ka8 $18)) 23. Bxd5 {[%emt 0:07:14]} exd5 {[%emt 0:00:06]} 24. Bg3 {[%emt 0:11:18] e6 would be deadly.} Ka8 {[%emt 0:07:16]} 25. Qd2 {[%emt 0:01:54] e6 is the strong threat.} (25. e6 $6 Qc6 26. Rfe1 Nf6 $11) 25... Nb6 {[%emt 0:02:44] [#]} 26. a4 {[%emt 0:00:32]} Qc6 $1 {[%emt 0:00:19]} (26... Nxa4 $2 27. Qxd5+ Qb7 28. Qxb7+ Kxb7 29. Rxc4 $18) 27. Rfd1 {[%emt 0:02:50]} Nxa4 {[%emt 0:04:04]} (27... Qxa4 $2 28. Ra1 Qc6 29. Rdb1 $16 (29. Rxa6+ Kb7 $16)) 28. Ra1 $1 {[%emt 0:02:43][%cal Oa1a4] And now Rxa4! would win.} (28. Qxd5 Qxd5 29. Rxd5 Rd8 30. Rxd8+ Rxd8 $11) 28... Rb8 {[%emt 0:06:26] [#]} 29. e6 $1 {[%emt 0:06:22]} ({Much less strong is} 29. Qxd5 $6 Qxd5 30. Rxd5 Rfd8 31. Rxd8 Rxd8 $14) 29... Rb4 {[%emt 0:00:05]} (29... Rbd8 $2 30. Qa5 Rc8 31. Rxa4 $18) 30. Nd4 {[%emt 0:01:21]} ({Don't play} 30. Qxd5 $6 Qxd5 31. Rxd5 Re8 $11) 30... Qb7 {[%emt 0:01:09]} 31. Nc2 {[%emt 0:01:25][%csl LRb4,LRd5] White is more active.} c3 {[%emt 0:01:26]} 32. Qxd5 {[%emt 0:04:21]} Qxd5 {[%emt 0:00:04]} 33. Rxd5 {[%emt 0:00:02]} Rb2 {[%emt 0:00:08] [#]} 34. h4 {[%emt 0:00:47]} (34. Rxa4 $2 {is a self mate.} Rb1+) (34. Kf1 $1 $16 Rxc2 35. Rxa4) 34... Rxc2 $11 {[%emt 0:03:16] The position is equal.} 35. Rxa4 {[%emt 0:00:04]} Bxf2+ {[%emt 0:03:41]} 36. Kh2 {[%emt 0:00:14] aiming for e7.} (36. Bxf2 {simplifies} Rfxf2 37. Rg4 Rfe2 38. Rd8+) 36... Rd2 {[%emt 0:01:43]} 37. e7 {[%emt 0:03:16]} Bxg3+ $1 {[%emt 0:00:13]} 38. Kxg3 {[%emt 0:00:02]} Re8 {[%emt 0:00:07]} 39. Rxd2 {[%emt 0:00:20]} cxd2 {[%emt 0:00:04]} 40. Rxa6+ {[%emt 0:00:02][%mdl 4096] Endgame KR-KR} Kb7 {[%emt 0:00:07]} 41. Rd6 {[%emt 0:50:01]} Rxe7 {[%emt 0:50:07]} 42. Rxd2 {[%emt 0:00:02]} Kc7 {[%emt 0:00:00]} 43. Kf4 {[%emt 0:00:00]} Rd7 {[%emt 0:00:00]} 44. Ra2 {[%emt 0:00:00]} Kd8 {[%emt 0:00:00]} 45. Kf5 {[%emt 0:00:00]} Rd6 {[%emt 0:00:00] Weighted Error Value: White=0.08 (flawless) /Black=0.09 (flawless)} 1/2-1/2

[Event "85th Tata Steel Masters 2023"]
[Site "Wijk aan Zee"]
[Date "2023.01.20"]
[Round "6.4"]
[White "Abdusattorov, Nodirbek"]
[Black "Praggnanandhaa R"]
[Result "1/2-1/2"]
[ECO "C80"]
[WhiteElo "2713"]
[BlackElo "2684"]
[Annotator "TA"]
[PlyCount "107"]
[EventDate "2023.01.10"]
[EventType "tourn"]
[EventCountry "NED"]
[SourceTitle "playchess.com"]
[Source "ChessBase"]
[SourceQuality "1"]
[TimeControl "40/6000+30:30/3000+30:900+30"]

{[%evp 19,107,0,0,0,12,0,0,0,15,0,0,0,16,5,10,0,0,0,12,14,11,20,42,29,51,16,29,30,47,2,90,36,39,39,49,37,52,50,63,43,64,41,47,41,41,31,30,28,39,30,25,27,60,38,51,50,50,52,52,51,49,29,32,15,23,8,8,8,8,8,15,6,8,8,8,8,8,8,15,14,14,14,15,0,0,0,0,0,0,0]} 1. e4 {[%emt 0:00:28]} e5 {[%emt 0:00:37]} 2. Nf3 {[%emt 0:00:22]} Nc6 {[%emt 0:00:08]} 3. Bb5 {[%emt 0:00:21]} a6 {[%emt 0:00:11]} 4. Ba4 {[%emt 0:00:18]} Nf6 {[%emt 0:00:08]} 5. O-O {[%emt 0:00:18]} Nxe4 {[%emt 0:00:14]} 6. d4 {[%emt 0:00:48]} b5 {[%emt 0:00:07]} 7. Bb3 {[%emt 0:00:07]} d5 {[%emt 0:00:08]} 8. dxe5 {[%emt 0:00:18]} Be6 {[%emt 0:00:08]} 9. Be3 {[%emt 0:00:19]} Be7 {[%emt 0:00:43]} 10. Nbd2 {[%emt 0:00:08]} Nc5 {[%emt 0:01:32]} 11. Bxc5 {[%emt 0:00:21] C80: Open Ruy Lopez: Sidelines and 9 Nbd2.} Bxc5 {[%emt 0:00:03]} 12. Qe2 {[%emt 0:00:10]} O-O {[%emt 0:02:36]} 13. c3 {[%emt 0:00:07]} Qe7 {[%emt 0:09:11]} 14. Rfe1 {[%emt 0:00:19]} Bb6 {[%emt 0:06:07]} 15. h3 {[%emt 0:01:42]} Rad8 {[%emt 0:09:39] [#]} 16. Bc2 $146 {[%emt 0:01:25]} ({Predecessor:} 16. a4 Na5 17. Bc2 Nc4 18. Nd4 Bd7 19. N2f3 Nxb2 20. axb5 axb5 21. Bxh7+ Kxh7 22. Qxb2 {½-½ Puranik,A (2604)-Das,A (2453) Castelldefels Llobregat op 2nd 2021 (3)}) 16... g6 {[%emt 0:10:41]} 17. a4 {[%emt 0:00:40][%cal Ba2a4,Ba4a5,Ba5b6,Bb6c7][%mdl 32]} b4 {[%emt 0:01:54]} 18. Nb3 {[%emt 0:00:11] Threatens to win with a5.} bxc3 {[%emt 0:11:31]} 19. bxc3 {[%emt 0:00:16] Hoping for a5.} d4 {[%emt 0:02:13]} 20. a5 {[%emt 0:11:06]} (20. Qxa6 dxc3 21. a5 Nb4 $17) 20... Bxb3 {[%emt 0:06:16]} (20... d3 {seems wilder.} 21. Bxd3 Bxf2+ 22. Kxf2 Bxb3 23. Bxa6 Bd5) 21. axb6 {[%emt 0:00:32]} (21. Bxb3 Nxa5 22. Ba2 dxc3 $15) 21... Bxc2 {[%emt 0:01:03]} 22. bxc7 $1 {[%emt 0:05:30]} Rc8 {[%emt 0:04:14][%cal Bd8c8,Bc8c7,Bc7c2][%mdl 32] White must now prevent ...d3.} 23. Qxc2 {[%emt 0:01:36]} Rxc7 {[%emt 0:00:12][%cal Oc6b4] And now ...Nb4! would win.} 24. Ra4 {[%emt 0:07:08] Repels Nb4} ({Inferior is} 24. cxd4 Nxd4 25. Qe4 Nc2 26. Rxa6 Nxe1 27. Qxe1 Rfc8 $17) (24. Rxa6 $2 Nb4 25. Qd1 Nxa6 $19) 24... Rfc8 {[%emt 0:12:37] [#]} (24... Qc5 $11 {keeps the balance.}) 25. Qd2 {[%emt 0:06:25] White has more active pieces.} ({Reject} 25. Nxd4 Nxd4 26. Rxd4 Rxc3 $11) (25. Rxa6 $2 {is the wrong capture.} Nb4 26. Qd1 Nxa6 $19) ({White should play} 25. e6 $1 $16) 25... dxc3 $14 {[%emt 0:00:08]} 26. Qxc3 {[%emt 0:00:16]} Nd8 {[%emt 0:04:28]} 27. Qa1 {[%emt 0:00:57]} Ne6 {[%emt 0:01:12]} 28. Rxa6 {[%emt 0:00:07]} Rc2 {[%emt 0:05:11]} 29. Rd6 {[%emt 0:04:18]} Qc7 {[%emt 0:01:27]} 30. Qa4 {[%emt 0:03:17]} Rc4 {[%emt 0:02:58]} 31. Qa6 {[%emt 0:03:52]} Rc1 {[%emt 0:02:23][%cal Oe6g5]} 32. Rdd1 {[%emt 0:04:12]} Rxd1 {[%emt 0:00:52]} 33. Rxd1 {[%emt 0:00:05]} Qc2 {[%emt 0:01:15]} 34. Rd2 {[%emt 0:10:21]} Qc1+ {[%emt 0:01:45]} 35. Kh2 {[%emt 0:02:14]} Qc4 {[%emt 0:00:18]} 36. Qa3 {[%emt 0:05:00]} (36. Qxc4 {simplifies} Rxc4 37. h4 h6 38. g3) 36... Qf4+ {[%emt 0:03:11]} 37. g3 $1 {[%emt 0:01:24]} Qe4 {[%emt 0:00:20]} 38. Qd3 {[%emt 0:01:18]} Qxd3 {[%emt 0:02:59]} 39. Rxd3 {[%emt 0:02:37][%mdl 4096] Endgame KRN-KRN} g5 {[%emt 0:02:59]} 40. Rd5 {[%emt 0:04:58]} (40. h4 $5 {[%cal Rf3g5]}) 40... Rc4 {[%emt 0:02:52]} 41. Kg2 {[%emt 0:51:27]} Kg7 {[%emt 0:51:16]} 42. Nh2 {[%emt 0:02:37]} h5 {[%emt 0:00:00][%cal Bh7h5,Bh5h4][%mdl 32] The position is equal.} 43. Nf1 {[%emt 0:00:00]} h4 {[%emt 0:00:00]} 44. Ne3 {[%emt 0:00:00]} Ra4 {[%emt 0:00:00]} 45. Nf5+ {[%emt 0:00:00]} Kg6 {[%emt 0:00:00]} 46. Ne7+ {[%emt 0:00:00]} Kg7 {[%emt 0:00:00]} 47. Rd7 {[%emt 0:00:00]} hxg3 {[%emt 0:00:00]} 48. fxg3 {[%emt 0:00:00]} Re4 {[%emt 0:00:00]} 49. Rd5 {[%emt 0:00:00]} Ra4 {[%emt 0:00:00]} 50. Kf2 {[%emt 0:00:00]} Ra3 {[%emt 0:00:00]} 51. Rd1 {[%emt 0:00:00]} Nc5 {[%emt 0:00:00]} 52. Nf5+ {[%emt 0:00:00]} Kg6 {[%emt 0:00:00]} 53. Ne7+ {[%emt 0:00:00]} Kg7 {[%emt 0:00:00]} 54. Nf5+ {[%emt 0:00:00] Weighted Error Value: White=0.08 (flawless) /Black=0.07 (flawless)} 1/2-1/2

[Event "85th Tata Steel Masters 2023"]
[Site "Wijk aan Zee"]
[Date "2023.01.20"]
[Round "6.5"]
[White "Van Foreest, Jorden"]
[Black "Carlsen, Magnus"]
[Result "1/2-1/2"]
[ECO "B49"]
[WhiteElo "2681"]
[BlackElo "2859"]
[Annotator "TA"]
[PlyCount "107"]
[EventDate "2023.01.10"]
[EventType "tourn"]
[EventCountry "NED"]
[SourceTitle "playchess.com"]
[Source "ChessBase"]
[SourceQuality "1"]
[TimeControl "40/6000+30:30/3000+30:900+30"]

{[%evp 15,107,41,35,30,28,14,16,0,7,0,0,0,14,15,8,1,10,0,0,-16,-7,0,-11,-27,-23,-25,-21,-27,-17,-16,-6,-8,0,0,0,0,6,4,4,0,0,0,0,0,0,0,0,0,0,0,0,0,0,0,0,0,0,0,0,0,0,0,0,0,0,0,0,0,0,0,0,0,0,0,0,0,0,0,0,0,0,0,0,0,0,0,0,0,0,0,0,0,0,0]} 1. e4 {[%emt 0:00:06]} c5 {[%emt 0:00:54]} 2. Nf3 {[%emt 0:00:12]} e6 {[%emt 0:00:16]} 3. d4 {[%emt 0:00:11]} cxd4 {[%emt 0:00:08]} 4. Nxd4 {[%emt 0:00:06]} Nc6 {[%emt 0:00:08]} 5. Nc3 {[%emt 0:00:15]} Qc7 {[%emt 0:01:17]} 6. Be2 {[%emt 0:00:11]} a6 {[%emt 0:00:28]} 7. Nxc6 {[%emt 0:00:32]} Qxc6 {[%emt 0:08:25]} 8. Be3 {[%emt 0:04:04]} b5 {[%emt 0:05:16]} 9. Bf3 {[%emt 0:19:58] B49: Sicilian: Taimanov: 5 Nc3 Qc7 6 Be3 a6 7 Be2.} Bb7 {[%emt 0:03:00]} 10. Qd4 {[%emt 0:00:13]} Qd6 {[%emt 0:11:44] [#]} 11. Qxd6 $146 {[%emt 0:16:30]} ({Predecessor:} 11. O-O-O Qxd4 12. Bxd4 Ne7 13. Rhe1 Nc6 14. e5 Rb8 15. Ne4 Nxd4 16. Rxd4 Bxe4 17. Rexe4 {½-½ Gabrielian,A (2545)-Bryzgalin,K (2473) Belorechensk Sarkisov Memorial op 2012 (4)}) 11... Bxd6 {[%emt 0:00:03]} 12. O-O-O {[%emt 0:00:07]} Be5 {[%emt 0:04:50]} 13. Bd4 {[%emt 0:02:05]} d6 {[%emt 0:02:25]} 14. Be2 {[%emt 0:02:21]} Nf6 {[%emt 0:04:35]} 15. f3 {[%emt 0:00:28]} Ke7 {[%emt 0:00:58]} 16. a3 {[%emt 0:07:21]} g5 {[%emt 0:03:37]} 17. Kb1 {[%emt 0:02:09]} Rhg8 {[%emt 0:04:41]} 18. a4 {[%emt 0:04:18]} b4 {[%emt 0:00:44]} 19. Na2 {[%emt 0:03:09]} Bxd4 {[%emt 0:03:45]} 20. Rxd4 {[%emt 0:00:06]} a5 {[%emt 0:00:06]} 21. c3 {[%emt 0:01:00]} bxc3 {[%emt 0:01:04]} 22. Nxc3 {[%emt 0:00:24] The position is equal.} d5 {[%emt 0:00:09]} 23. exd5 {[%emt 0:02:07]} Nxd5 {[%emt 0:00:11]} 24. Nxd5+ {[%emt 0:06:17]} Bxd5 {[%emt 0:00:59]} 25. Rc1 {[%emt 0:00:27]} Kf6 {[%emt 0:04:29]} 26. Bc4 {[%emt 0:01:13]} Bb7 {[%emt 0:01:27] [#]} 27. b4 $1 {[%emt 0:02:24]} axb4 {[%emt 0:00:43]} 28. Bb3 {[%emt 0:01:15]} Ra5 {[%emt 0:07:06]} 29. Rxb4 {[%emt 0:01:56]} Ba8 {[%emt 0:00:27]} 30. Kb2 {[%emt 0:00:54]} h5 {[%emt 0:01:06]} 31. h3 {[%emt 0:06:46]} Re5 {[%emt 0:01:00]} 32. Rc2 {[%emt 0:00:13]} h4 {[%emt 0:00:59]} 33. Rb5 {[%emt 0:01:49]} Rd8 {[%emt 0:00:52]} 34. Rxe5 {[%emt 0:06:40]} Kxe5 $11 {[%emt 0:00:02][%mdl 4096] Endgame KRB-KRB} 35. a5 {[%emt 0:02:09]} Kf4 {[%emt 0:00:43]} 36. Rc7 {[%emt 0:01:33]} Bd5 {[%emt 0:06:27]} 37. Rxf7+ {[%emt 0:05:11]} Kg3 {[%emt 0:01:33] [#] And now ...Rb8 would win.} 38. Bxd5 {[%emt 0:01:11]} Rxd5 {[%emt 0:00:09] KR-KR} 39. a6 {[%emt 0:00:17]} Kxg2 {[%emt 0:00:43]} 40. a7 {[%emt 0:02:21]} Ra5 {[%emt 0:00:09]} 41. Kc3 {[%emt 0:52:26]} Kxh3 {[%emt 0:53:06]} 42. Rg7 {[%emt 0:00:52]} g4 {[%emt 0:08:37]} 43. fxg4 {[%emt 0:06:15]} ({But not} 43. Rxg4 Ra3+ 44. Kc2 Rxa7 $15) 43... Kg3 {[%emt 0:02:23]} 44. Kb4 {[%emt 0:00:44]} Ra6 {[%emt 0:13:11]} 45. Kb5 {[%emt 0:00:00]} (45. g5 $5 h3 $8 46. Kb5 $11 (46. Rh7 h2 $17)) 45... Ra1 {[%emt 0:00:00]} 46. Kb6 {[%emt 0:00:00] g5 is the strong threat.} (46. g5 $5 h3 $8 47. Rh7 $11) 46... h3 {[%emt 0:00:00]} 47. g5 {[%emt 0:00:00] g6 would be deadly.} h2 {[%emt 0:00:00]} 48. Rh7 {[%emt 0:00:00] aiming for g6.} Rb1+ {[%emt 0:00:00]} 49. Kc7 {[%emt 0:00:00]} Rc1+ {[%emt 0:00:00]} 50. Kb7 {[%emt 0:00:00]} (50. Kb6 $5 Rb1+ $8 51. Kc5 $11) 50... Rb1+ {[%emt 0:00:00]} 51. Kc7 {[%emt 0:00:00]} (51. Ka6 $5 Ra1+ $8 52. Kb6 Rb1+ 53. Kc5 Rc1+ 54. Kd4 $11) 51... Ra1 {[%emt 0:00:00]} 52. Kb7 {[%emt 0:00:00]} (52. Kb6 $5 Rb1+ $8 53. Kc6 Rc1+ 54. Kb7 (54. Kd6 Ra1 $11) 54... Rb1+ 55. Kc7 $11) 52... Rb1+ $1 {[%emt 0:00:00]} 53. Kc7 {[%emt 0:00:00]} (53. Ka6 $5 Ra1+ $8 54. Kb7 Rb1+ $11) 53... Ra1 {[%emt 0:00:00]} 54. Kb7 {[%emt 0:00:00] Weighted Error Value: White=0.02 (flawless) /Black=0.01 (flawless)} (54. Kb8 $5 Rb1+ $8 55. Kc8 Rc1+ 56. Kb8 Rb1+ 57. Kc8 Rc1+ 58. Kb8 Rb1+ $11) 1/2-1/2

[Event "85th Tata Steel Masters 2023"]
[Site "Wijk aan Zee"]
[Date "2023.01.20"]
[Round "6.6"]
[White "Rapport, Richard"]
[Black "Maghsoodloo, Parham"]
[Result "1/2-1/2"]
[ECO "B53"]
[WhiteElo "2740"]
[BlackElo "2719"]
[Annotator "TA"]
[PlyCount "66"]
[EventDate "2023.01.10"]
[EventType "tourn"]
[EventCountry "NED"]
[SourceTitle "playchess.com"]
[Source "ChessBase"]
[SourceQuality "1"]
[TimeControl "40/6000+30:30/3000+30:900+30"]

{[%evp 9,66,12,10,9,8,0,4,13,4,0,10,-7,0,-1,0,0,0,0,0,5,14,0,0,-10,25,0,0,0,6,0,0,-20,-19,-17,-11,0,1,-1,41,0,0,0,0,0,0,0,0,0,0,0,0,0,0,0,-8,-4,0,0,0]} 1. e4 {[%emt 0:00:56]} c5 {[%emt 0:00:06]} 2. Nf3 {[%emt 0:00:35]} d6 {[%emt 0:00:07]} 3. d4 {[%emt 0:00:37]} cxd4 {[%emt 0:00:06]} 4. Qxd4 {[%emt 0:00:05]} Nf6 {[%emt 0:00:05]} 5. Nc3 {[%emt 0:00:37]} Nc6 {[%emt 0:05:56]} 6. Qd3 {[%emt 0:01:08] B53: Sicilian: 2...d6: Lines with Qxd4.} g6 {[%emt 0:02:11]} 7. Nd5 {[%emt 0:00:53]} Bg7 {[%emt 0:00:41]} 8. c3 {[%emt 0:00:31]} O-O {[%emt 0:10:23]} 9. Bg5 {[%emt 0:01:03]} Be6 {[%emt 0:03:14]} 10. Be2 {[%emt 0:18:26] [#]} Qa5 $146 {[%emt 0:13:58][%cal Of6e4]} ({Predecessor:} 10... h6 11. Nxf6+ exf6 12. Be3 f5 13. exf5 Bxf5 14. Qd2 Re8 15. O-O d5 16. Rfe1 h5 {1-0 Xiong,J (2692)-Santos Ruiz,M (2587) Speed Chess Q2 blitz 2022 (8)}) 11. Nxf6+ {[%emt 0:16:55]} exf6 {[%emt 0:01:09]} 12. Be3 {[%emt 0:01:19]} Rfd8 {[%emt 0:20:07]} 13. O-O {[%emt 0:07:51]} a6 {[%emt 0:00:06]} 14. Nd4 {[%emt 0:11:19]} Ne5 {[%emt 0:00:33]} 15. Qc2 {[%emt 0:05:42]} Bc4 {[%emt 0:00:06]} 16. Rfd1 {[%emt 0:03:35]} Rac8 {[%emt 0:03:53]} 17. Nb3 {[%emt 0:08:20]} (17. b3 $5 {[%cal Rb3c4]} Bxe2 18. Nxe2 $11) 17... Qc7 {[%emt 0:03:08]} 18. Bf4 {[%emt 0:04:53]} b5 {[%emt 0:06:57]} 19. a4 {[%emt 0:03:30]} d5 {[%emt 0:05:25]} 20. axb5 {[%emt 0:01:38]} axb5 {[%emt 0:00:23] Threatening ...dxe4.} 21. exd5 {[%emt 0:01:27]} Bxd5 {[%emt 0:00:06]} 22. Rd4 {[%emt 0:04:58]} (22. Bxb5 Nf3+ 23. gxf3 Qxf4 $19) 22... f5 {[%emt 0:05:35]} 23. Rad1 {[%emt 0:01:57]} ({Of course not} 23. Bxb5 Bxg2 24. Qe2 (24. Kxg2 Qb7+ 25. Kh3 Qxb5 $17) (24. Rxd8+ Rxd8 25. Qe2 Be4 $17) 24... Ba8 25. Rxd8+ Rxd8 $17) 23... Be4 {[%emt 0:00:16]} 24. Rxd8+ {[%emt 0:04:25]} (24. Qd2 $5 {[%cal Rd4d8]} Rxd4 25. Nxd4 $14) 24... Rxd8 {[%emt 0:00:01] The position is equal.} 25. Rxd8+ {[%emt 0:00:07]} Qxd8 {[%emt 0:00:04]} 26. Qd2 {[%emt 0:00:24]} Qa8 {[%emt 0:05:58]} 27. Bf1 {[%emt 0:01:02]} Nc4 {[%emt 0:02:06]} 28. Qe2 {[%emt 0:01:20]} h6 {[%emt 0:07:45]} 29. Nd2 {[%emt 0:04:04]} Nxb2 {[%emt 0:04:33] [#] ...Bd3 is the strong threat.} 30. Nxe4 {[%emt 0:01:02]} Qxe4 {[%emt 0:00:06]} 31. Qxe4 {[%emt 0:00:20]} fxe4 {[%emt 0:00:06]} 32. Bxb5 {[%emt 0:00:04]} Bxc3 {[%emt 0:01:56]} 33. Bxh6 {[%emt 0:00:08]} Bd4 {[%emt 0:00:07] A balanced but interesting game.   Weighted Error Value: White=0.06 (flawless) /Black=0.06 (flawless)} 1/2-1/2

[Event "85th Tata Steel Masters 2023"]
[Site "Wijk aan Zee"]
[Date "2023.01.20"]
[Round "6.7"]
[White "Caruana, Fabiano"]
[Black "Gukesh D"]
[Result "1-0"]
[ECO "D38"]
[WhiteElo "2766"]
[BlackElo "2725"]
[Annotator "TA"]
[PlyCount "71"]
[EventDate "2023.01.10"]
[EventType "tourn"]
[EventCountry "NED"]
[SourceTitle "playchess.com"]
[Source "ChessBase"]
[SourceQuality "1"]
[TimeControl "40/6000+30:30/3000+30:900+30"]

{[%evp 11,71,16,13,13,13,17,12,9,29,4,27,30,26,33,70,62,104,103,202,217,212,209,203,208,196,206,191,202,198,98,104,95,120,120,109,97,121,93,105,109,142,143,218,227,431,440,417,392,411,418,383,389,382,331,322,338,307,316,344,341,357,353]} 1. d4 {[%emt 0:00:08]} Nf6 {[%emt 0:00:39]} 2. c4 {[%emt 0:00:06]} e6 {[%emt 0:00:40]} 3. Nf3 {[%emt 0:00:09]} d5 {[%emt 0:00:23]} 4. Nc3 {[%emt 0:00:06]} Bb4 {[%emt 0:01:39]} 5. Qa4+ {[%emt 0:00:22]} Nc6 {[%emt 0:00:07]} 6. e3 {[%emt 0:00:05]} O-O {[%emt 0:00:21]} 7. Qc2 {[%emt 0:00:12] D38: Queen's Gambit Declined: Ragozin Defence (4 Nf3 Bb4).} Ne7 {[%emt 0:02:46]} 8. Bd2 {[%emt 0:01:29]} b6 {[%emt 0:03:39]} 9. a3 {[%emt 0:00:15] The position is equal.} Bxc3 {[%emt 0:01:52]} 10. Bxc3 {[%emt 0:00:06]} Ba6 {[%emt 0:00:57]} 11. b3 {[%emt 0:14:14]} Rc8 {[%emt 0:15:00] [#]} 12. Rd1 $146 {[%emt 0:01:08]} ({Predecessor:} 12. Bd3 Nf5 13. O-O Nd6 14. Bb4 c5 15. dxc5 bxc5 16. Bc3 dxc4 17. bxc4 h6 18. Rfd1 {½-½ Grachev,B (2639)-Bluebaum,M (2605) Moscow Aeroflot op-A 15th 2016 (3)}) 12... c5 {[%emt 0:05:57]} 13. dxc5 {[%emt 0:02:51]} Rxc5 {[%emt 0:00:16]} 14. Qb2 $1 {[%emt 0:14:10] White is more active.} Qc8 {[%emt 0:24:16]} (14... Rc8 $16) 15. Bxf6 $18 {[%emt 0:11:08]} gxf6 {[%emt 0:00:04]} 16. Qxf6 {[%emt 0:00:10]} Ng6 {[%emt 0:00:27][%cal Rd5c4] [#]} 17. h4 $1 {[%emt 0:03:34][%cal Bh2h4,Bh4h5][%mdl 32]} dxc4 {[%emt 0:02:09]} 18. h5 {[%emt 0:03:43] h6 would kill now.} Rf5 {[%emt 0:00:08]} 19. Qc3 {[%emt 0:00:11]} Ne7 {[%emt 0:00:43]} 20. bxc4 $40 {[%emt 0:21:55][%mdl 128] White wants a kill.} ({Don't play} 20. Bxc4 $6 Bxc4 21. bxc4 f6 $16) (20. e4 $18 {and White stays clearly on top.} Rf4 21. Qe3 (21. Qe5 Rg4 $16)) 20... f6 $16 {[%emt 0:04:57]} 21. Be2 {[%emt 0:04:27]} Rc5 {[%emt 0:07:04][%cal Oe7d5] [#]} 22. Nd2 $1 {[%emt 0:00:29] aiming for Ne4.} Bb7 {[%emt 0:02:02] Against Ne4} 23. Rh4 {[%emt 0:06:56][%cal Bh1h4,Bh4e4,Be4g4][%mdl 32]} e5 {[%emt 0:09:37]} 24. Ne4 {[%emt 0:05:51]} Bxe4 {[%emt 0:00:20]} 25. Rxe4 {[%emt 0:00:03]} Qe6 {[%emt 0:03:21]} 26. Qd2 {[%emt 0:04:42]} Ra5 {[%emt 0:03:01]} (26... f5 $16 {is a better defense.} 27. Rh4 Nc6) 27. Rg4+ $18 {[%emt 0:02:11]} Kf7 $2 {[%emt 0:02:15]} (27... Kh8 28. Qd7 Qxd7 29. Rxd7 Re8) 28. h6 {[%emt 0:04:11] White wants to mate with Rg7+.} Ng6 {[%emt 0:00:05] [#]} 29. c5 $1 {[%emt 0:06:02][%mdl 512]} Rxc5 {[%emt 0:00:52]} 30. Qd7+ {[%emt 0:00:05][%mdl 64] Skewer} Qxd7 {[%emt 0:00:08]} 31. Rxd7+ {[%emt 0:00:04]} Kg8 {[%emt 0:00:04]} 32. Rxa7 {[%emt 0:01:29]} Rc1+ {[%emt 0:00:02]} 33. Kd2 {[%emt 0:00:06]} Rh1 {[%emt 0:00:09]} 34. Rb4 {[%emt 0:01:39]} Rxh6 {[%emt 0:00:56]} 35. Rxb6 {[%emt 0:00:22]} ({Don't take} 35. Bc4+ Kh8 36. Rxb6 e4 $18) 35... Rh2 {[%emt 0:02:01]} 36. Rbb7 {[%emt 0:02:22] Weighted Error Value: White=0.10 (very precise) /Black=0.24 (precise)} 1-0